bitfinex/quotes_SOLUSD_20250219
["timestamp","ask_amount","ask_price","bid_price","bid_amount"]
[1739991415252,4.52,170.21,170.16,26.93030313]
[1739991415460,4.52,170.21,170.16,5.8767]
[1739991417048,31.45030313,170.21,170.16,5.8767]
[1739991417781,31.45030313,170.21,170.15,5.8771]
[1739991417945,31.45030313,170.21,170.13,32.80810313]
[1739991417946,26.93030313,170.19,170.13,32.80810313]
[1739991418149,83.0,170.2,170.15,26.93030313]
[1739991418551,83.0,170.2,170.15,16.81612008]
[1739991419172,4.52,170.21,170.18,16.81612008]
[1739991419361,4.52,170.21,170.13,14.6946]
[1739991419362,4.52,170.21,170.17,16.81612008]
[1739991419859,4.52,170.21,170.18,16.81612008]
[1739991420456,4.52,170.21,170.17,16.81612008]
[1739991420658,4.52,170.21,170.17,22.69232008]
[1739991420886,4.52,170.21,170.18,16.81612008]
[1739991421182,4.52,170.21,170.17,22.69232008]
[1739991421692,4.52,170.21,170.17,5.8762]
[1739991422182,27.21122008,170.21,170.14,16.81612008]
[1739991422360,16.81612008,170.2,170.13,16.81612008]
[1739991422565,4.52,170.21,170.15,16.81612008]
[1739991422985,4.52,170.21,170.16,22.69292008]
[1739991423195,4.52,170.21,170.17,16.81612008]
[1739991423488,83.0,170.22,170.18,16.81612008]
[1739991423862,83.0,170.24,170.19,16.81612008]
[1739991424175,4.52,170.26,170.21,16.81612008]
[1739991424982,4.52,170.26,170.22,5.8747]
[1739991425693,83.0,170.27,170.22,22.69082008]
[1739991426368,83.0,170.27,170.22,5.8747]
[1739991426699,83.0,170.27,170.22,22.69082008]
[1739991429087,0.03,170.28,170.24,16.81612008]
[1739991429266,0.03,170.28,170.25,16.81612008]
[1739991429710,0.03,170.28,170.27,16.81612008]
[1739991430007,0.03,170.28,170.26,16.81612008]
[1739991430989,0.03,170.28,170.26,22.68912008]
[1739991431375,0.03,170.28,170.24,16.81612008]
[1739991431570,0.03,170.28,170.23,22.69052008]
[1739991431805,0.03,170.28,170.24,16.81612008]
[1739991432194,0.03,170.28,170.23,22.69052008]
[1739991432571,16.84612008,170.28,170.23,5.8744]
[1739991432890,16.84612008,170.28,170.23,22.69052008]
[1739991432891,0.03,170.28,170.23,22.69052008]
[1739991433090,0.03,170.28,170.24,16.81612008]
[1739991433581,0.03,170.28,170.25,16.81612008]
[1739991435502,0.03,170.28,170.23,16.81612008]
[1739991436283,0.03,170.28,170.24,16.81612008]
[1739991437081,16.84612008,170.28,170.22,16.81612008]
[1739991438206,0.03,170.28,170.23,16.81612008]
[1739991439295,0.03,170.28,170.24,5.874]
[1739991440107,0.03,170.28,170.24,22.69012008]
[1739991441005,0.03,170.28,170.19,85.35673664]
[1739991441212,16.84612008,170.28,170.22,22.69052008]
[1739991441725,0.03,170.28,170.22,22.69052008]
[1739991442512,0.03,170.28,170.22,5.8744]
[1739991442698,0.03,170.28,170.22,22.69052008]
[1739991443030,0.03,170.28,170.07,97.51612008]
[1739991443031,1.0,170.21,170.07,97.51612008]
[1739991443232,16.81612008,170.15,170.07,22.69592008]
[1739991443441,16.81612008,170.15,170.08,16.81612008]
[1739991443733,16.81612008,170.16,170.09,16.81612008]
[1739991444107,16.81612008,170.17,170.1,16.81612008]
[1739991444501,16.81612008,170.16,170.09,16.81612008]
[1739991446116,22.69302008,170.16,170.09,16.81612008]
[1739991446437,16.81612008,170.15,170.09,16.81612008]
[1739991447013,16.81612008,170.13,170.06,0.03]
[1739991447224,35.46576894,170.13,170.06,0.03]
[1739991448032,41.34356894,170.13,170.06,0.03]
[1739991451532,44.28902455,170.13,170.06,0.03]
[1739991453435,181.58902455,170.13,170.06,0.03]
[1739991453736,183.20782455,170.13,170.06,0.03]
[1739991457508,177.33002455,170.13,170.06,0.03]
[1739991457706,155.94964886,170.13,170.06,16.84612008]
[1739991457908,177.54576894,170.13,170.06,16.84612008]
[1739991458841,183.42356894,170.13,170.07,5.8799]
[1739991459836,183.42356894,170.13,170.06,0.03]
[1739991460042,183.42356894,170.13,170.06,5.9102]
[1739991461847,183.42356894,170.13,170.06,16.84612008]
[1739991463145,154.11612008,170.13,170.06,22.72602008]
[1739991463450,158.85612008,170.13,170.06,22.72602008]
[1739991463812,158.85612008,170.13,170.06,5.9099]
[1739991464041,149.52213702,170.13,170.06,5.9099]
[1739991464640,158.79297027,170.13,170.06,0.03]
[1739991464845,164.67077027,170.13,170.06,0.03]
[1739991465326,183.32041913,170.13,170.06,0.03]
[1739991467846,183.32041913,170.13,170.06,16.78297027]
[1739991468547,166.56744886,170.13,170.06,16.78297027]
[1739991469051,183.32041913,170.13,170.06,22.66297027]
[1739991470224,183.32041913,170.13,170.06,0.03]
[1739991470748,183.38341913,170.13,170.06,0.03]
[1739991472061,183.38341913,170.13,170.06,5.9102]
[1739991474669,177.50561913,170.13,170.06,5.9102]
[1739991474966,177.50561913,170.13,170.06,22.66317027]
[1739991475468,183.34341913,170.13,170.06,22.66317027]
[1739991475671,183.34341913,170.13,170.06,5.9102]
[1739991477167,183.34341913,170.13,170.06,0.03]
[1739991484745,186.04907758,170.13,170.06,0.03]
[1739991487251,189.01061309,170.13,170.06,0.03]
[1739991490390,190.01061309,170.13,170.06,0.03]
[1739991491475,189.01061309,170.13,170.06,0.03]
[1739991499083,20.0,170.09,170.06,0.03]
[1739991499317,38.10827758,170.07,170.06,0.03]
[1739991499477,19.45862872,170.05,170.04,0.063]
[1739991500784,19.45862872,170.06,170.04,0.063]
[1739991500978,4.62,170.07,170.04,0.063]
[1739991501867,29.97822872,170.08,170.04,0.063]
[1739991503499,24.09862872,170.08,170.04,0.063]
[1739991504393,107.09862872,170.08,170.04,0.063]
[1739991504595,87.64,170.08,170.04,0.063]
[1739991504790,87.64,170.08,170.04,19.52162872]
[1739991504967,87.64,170.08,170.04,0.063]
[1739991505295,83.0,170.08,170.04,0.063]
[1739991505873,102.45862872,170.08,170.04,0.063]
[1739991507097,19.45862872,170.07,170.04,0.063]
[1739991507888,19.45862872,170.05,170.04,0.063]
[1739991508098,38.10827758,170.05,170.04,0.063]
[1739991509278,43.98887758,170.05,170.04,0.063]
[1739991510486,38.10827758,170.05,170.04,0.063]
[1739991510690,43.98887758,170.05,170.04,0.063]
[1739991511679,38.10827758,170.05,170.04,0.063]
[1739991511878,19.45862872,170.05,170.04,0.063]
[1739991512195,2.87599477,170.06,170.04,0.063]
[1739991512196,19.45862872,170.06,170.04,0.063]
[1739991512571,39.45862872,170.05,170.04,0.063]
[1739991513471,45.33922872,170.05,170.04,0.063]
[1739991514320,63.98887758,170.05,170.04,0.063]
[1739991514978,68.58887758,170.05,170.04,0.063]
[1739991518422,62.70827758,170.05,170.04,0.063]
[1739991519219,44.05862872,170.05,170.04,0.063]
[1739991519395,24.6,170.05,170.04,0.063]
[1739991520421,49.93922872,170.05,170.04,0.063]
[1739991520610,68.58887758,170.05,170.04,0.063]
[1739991523424,62.70827758,170.05,170.04,0.063]
[1739991524627,44.05862872,170.05,170.04,0.063]
[1739991524833,19.52162872,170.06,170.04,0.063]
[1739991525003,0.063,170.06,170.04,0.063]
[1739991532724,19.52162872,170.06,170.04,0.063]
[1739991534412,102.45862872,170.05,170.04,0.063]
[1739991538118,108.33922872,170.05,170.04,0.063]
[1739991540045,126.98887758,170.05,170.04,0.063]
[1739991541936,102.45862872,170.05,170.04,0.063]
[1739991542127,83.0,170.05,170.04,0.063]
[1739991542327,102.45862872,170.05,170.04,0.063]
[1739991543142,108.33922872,170.05,170.04,0.063]
[1739991545437,102.45862872,170.05,170.04,0.063]
[1739991545637,108.33922872,170.05,170.04,0.063]
[1739991545934,126.98887758,170.05,170.04,0.063]
[1739991546159,43.98887758,170.05,170.04,0.063]
[1739991546458,44.98887758,170.05,170.04,0.063]
[1739991547257,46.27635064,170.05,170.04,0.063]
[1739991547450,52.5829861,170.05,170.04,0.063]
[1739991548263,51.5829861,170.05,170.04,0.063]
[1739991549438,52.5829861,170.05,170.04,0.063]
[1739991549638,51.5829861,170.05,170.04,0.063]
[1739991549949,52.5829861,170.05,170.04,0.063]
[1739991550663,50.44159063,170.05,170.04,0.063]
[1739991550867,49.44159063,170.05,170.04,0.063]
[1739991551240,48.44159063,170.05,170.04,0.063]
[1739991551560,46.38748211,170.05,170.04,0.063]
[1739991555542,20.0,170.02,169.95,0.03]
[1739991555858,18.64964886,170.04,169.95,0.03]
[1739991555859,17.31723325,169.98,169.95,0.03]
[1739991556377,17.31723325,169.99,169.95,0.03]
[1739991557944,17.31723325,169.98,169.95,0.03]
[1739991558266,21.8603567,169.99,169.95,0.03]
[1739991558456,4.54,169.99,169.95,0.03]
[1739991558857,83.0,170.01,169.95,17.3503567]
[1739991559676,83.0,170.01,169.96,5.8837]
[1739991560046,100.3203567,170.01,169.96,5.8837]
[1739991560561,106.2023567,170.01,169.95,0.03]
[1739991560782,17.3203567,170.0,169.95,0.03]
[1739991560957,100.3203567,170.0,169.95,0.03]
[1739991562648,83.0,170.0,169.95,0.03]
[1739991564088,83.0,170.0,169.95,17.3503567]
[1739991565881,83.0,170.0,169.96,23.2040567]
[1739991566784,4.54,170.02,169.96,23.2040567]
[1739991567459,104.9233567,170.04,169.96,23.2040567]
[1739991567666,17.3203567,170.03,169.96,23.2040567]
[1739991568886,17.3203567,170.03,169.96,37.9133567]
[1739991569575,17.3203567,170.03,169.96,23.2040567]
[1739991569779,17.3203567,170.02,169.96,5.8837]
[1739991570288,17.3203567,170.03,169.96,23.2040567]
[1739991570502,17.3203567,170.03,169.96,37.9133567]
[1739991571990,4.603,170.04,169.96,37.9133567]
[1739991572187,17.3203567,170.03,169.96,37.9133567]
[1739991573096,4.583,170.04,169.98,17.3203567]
[1739991573474,0.063,170.04,169.98,17.3203567]
[1739991573780,0.063,170.04,169.99,5.8826]
[1739991574980,17.3833567,170.04,169.99,5.8826]
[1739991575689,17.3203567,170.02,169.96,5.8837]
[1739991575990,0.063,170.04,169.96,5.8837]
[1739991575991,17.3203567,170.03,169.96,5.8837]
[1739991576169,17.3203567,170.02,169.96,5.8837]
[1739991577388,17.3203567,170.03,169.96,5.8837]
[1739991578574,17.3203567,170.03,169.96,20.593]
[1739991578775,17.3203567,170.03,169.96,37.9133567]
[1739991579396,17.3833567,170.04,169.96,37.9133567]
[1739991579572,17.3203567,170.03,169.96,37.9133567]
[1739991579771,17.3833567,170.04,169.96,37.9133567]
[1739991581082,0.063,170.04,169.96,20.593]
[1739991581290,17.3203567,170.02,169.96,20.593]
[1739991581606,17.3833567,170.04,169.96,37.9133567]
[1739991585297,17.3203567,170.03,169.96,20.593]
[1739991585674,17.3203567,170.03,169.96,37.9133567]
[1739991585880,17.3833567,170.04,169.96,37.9133567]
[1739991588905,17.3833567,170.04,169.96,37.9433567]
[1739991596392,0.063,170.04,169.98,17.3203567]
[1739991599091,0.063,170.04,169.99,5.8826]
[1739991599782,17.3203567,170.02,169.97,5.8833]
[1739991600182,17.3833567,170.04,169.97,5.8833]
[1739991600413,0.063,170.04,169.98,17.3203567]
[1739991600590,0.063,170.04,169.97,5.8833]
[1739991600912,17.3203567,170.03,169.97,20.0]
[1739991601207,17.3203567,170.03,169.96,0.03]
[1739991601417,17.3203567,170.03,169.96,17.3503567]
[1739991601714,0.063,170.04,169.96,17.3503567]
[1739991601932,17.3203567,170.03,169.96,0.03]
[1739991602091,17.3203567,170.01,169.96,0.03]
[1739991602288,17.3203567,169.99,169.96,0.03]
[1739991602901,4.52,170.0,169.96,0.03]
[1739991603217,0.063,170.04,169.98,17.3203567]
[1739991603381,17.3833567,170.04,169.97,37.3203567]
[1739991603912,0.063,170.04,169.98,17.3203567]
[1739991604217,0.063,170.04,170.01,17.3203567]
[1739991604439,0.063,170.04,170.03,17.3203567]
[1739991604710,0.063,170.04,170.0,17.3203567]
[1739991605016,0.063,170.04,169.98,5.883]
[1739991605017,17.3833567,170.04,169.98,5.883]
[1739991605193,17.3203567,170.03,169.98,5.883]
[1739991605392,17.3203567,170.02,169.98,5.883]
[1739991605592,17.3203567,170.03,169.98,5.883]
[1739991605989,4.583,170.04,170.0,17.3203567]
[1739991606307,17.3833567,170.04,169.98,5.883]
[1739991606617,0.063,170.04,169.98,5.883]
[1739991606803,0.063,170.04,169.98,23.2033567]
[1739991607002,0.063,170.04,169.99,17.3203567]
[1739991607304,0.063,170.04,169.98,17.3203567]
[1739991607493,0.063,170.04,169.97,17.3203567]
[1739991607694,17.3833567,170.04,169.97,17.3203567]
[1739991608095,17.3833567,170.04,169.96,0.03]
[1739991608096,17.3203567,170.02,169.96,0.03]
[1739991608607,18.71264886,170.04,169.97,17.3203567]
[1739991608608,0.063,170.04,169.97,17.3203567]
[1739991608807,17.3203567,170.01,169.96,0.03]
[1739991609830,17.3203567,169.99,169.96,0.03]
[1739991610027,4.52,170.02,169.96,0.03]
[1739991610624,17.3203567,170.01,169.96,0.03]
[1739991613237,17.3203567,169.99,169.96,0.03]
[1739991615630,17.3203567,169.97,169.96,0.03]
[1739991615835,35.97000556,169.97,169.96,0.03]
[1739991616332,17.3203567,169.97,169.96,0.03]
[1739991616515,18.64964886,169.98,169.96,0.03]
[1739991617233,17.3203567,169.97,169.96,0.03]
[1739991618535,61.96354413,169.97,169.96,0.03]
[1739991618714,29.31154623,169.97,169.96,0.03]
[1739991620034,20.0,169.93,169.89,0.03]
[1739991620237,18.64964886,169.88,169.83,0.03]
[1739991620432,53.30948685,169.84,169.83,0.03]
[1739991621229,10.66189737,169.84,169.83,0.03]
[1739991621957,77.84693571,169.84,169.83,0.03]
[1739991622442,66.71843906,169.84,169.83,0.03]
[1739991622612,72.60623906,169.84,169.83,0.03]
[1739991623015,18.64964886,169.83,169.79,0.03]
[1739991623230,28.2634069,169.8,169.79,0.03]
[1739991623561,32.7834069,169.8,169.79,0.03]
[1739991623858,38.6726069,169.8,169.79,0.03]
[1739991624350,20.0,169.77,169.76,0.03]
[1739991624554,89.07844136,169.77,169.76,0.03]
[1739991624755,18.64964886,169.76,169.65,5.8944]
[1739991625058,9.61375804,169.68,169.65,5.8944]
[1739991625558,4.52,169.71,169.61,5.8958]
[1739991625559,9.61375804,169.66,169.61,5.8958]
[1739991625727,9.61375804,169.68,169.61,9.61375804]
[1739991626059,9.61375804,169.67,169.6,30.25005804]
[1739991626547,4.52,169.71,169.61,9.61375804]
[1739991626548,9.61375804,169.68,169.61,9.61375804]
[1739991626748,15.04158437,169.67,169.6,20.93778437]
[1739991626981,15.04158437,169.67,169.61,15.04158437]
[1739991627152,23.16964886,169.71,169.62,15.04158437]
[1739991627325,15.04158437,169.68,169.61,15.04158437]
[1739991627840,4.52,169.74,169.67,15.04158437]
[1739991628153,4.52,169.78,169.67,2.0]
[1739991628454,4.54,169.82,169.74,15.04158437]
[1739991628635,15.04158437,169.8,169.73,15.04158437]
[1739991629026,15.04158437,169.74,169.68,20.0]
[1739991629240,15.04158437,169.72,169.66,15.04158437]
[1739991629463,15.04158437,169.73,169.66,15.04158437]
[1739991629952,15.04158437,169.69,169.65,5.8944]
[1739991630168,15.04158437,169.7,169.65,5.8944]
[1739991630347,15.04158437,169.68,169.65,5.8944]
[1739991630651,15.04158437,169.69,169.65,5.8944]
[1739991631246,19.58158437,169.7,169.63,15.04158437]
[1739991631444,19.58158437,169.7,169.64,5.8948]
[1739991632644,28.59998422,169.7,169.63,24.05998422]
[1739991632850,4.54,169.7,169.66,24.05998422]
[1739991633067,24.05998422,169.74,169.67,24.05998422]
[1739991633262,4.54,169.74,169.71,24.05998422]
[1739991633673,24.05998422,169.77,169.7,24.05998422]
[1739991634174,4.54,169.78,169.72,24.05998422]
[1739991634757,28.59998422,169.78,169.71,24.05998422]
[1739991635071,28.59998422,169.78,169.72,24.05998422]
[1739991635281,28.59998422,169.78,169.7,5.8924]
[1739991635577,24.05998422,169.75,169.68,24.05998422]
[1739991635874,24.05998422,169.75,169.69,24.05998422]
[1739991636169,18.64964886,169.75,169.7,24.05998422]
[1739991636555,28.66298422,169.78,169.71,24.05998422]
[1739991636765,20.0,169.75,169.7,24.05998422]
[1739991637268,20.0,169.75,169.71,24.05998422]
[1739991637466,18.64964886,169.74,169.69,24.05998422]
[1739991637672,20.0,169.75,169.7,24.05998422]
[1739991637872,4.54,169.77,169.74,24.05998422]
[1739991638055,20.063,169.78,169.74,24.05998422]
[1739991638671,0.063,169.78,169.75,24.05998422]
[1739991638878,0.063,169.78,169.77,24.05998422]
[1739991639256,0.063,169.78,169.74,5.8912]
[1739991639584,0.063,169.78,169.75,24.05998422]
[1739991640776,0.063,169.78,169.76,5.8906]
[1739991642084,0.063,169.78,169.76,29.95058422]
[1739991642575,0.063,169.78,169.77,24.05998422]
[1739991644469,0.063,169.78,169.77,29.95028422]
[1739991644667,24.05998422,169.89,169.77,44.67608422]
[1739991644971,8.43903817,169.94,169.88,24.05998422]
[1739991645174,24.05998422,169.93,169.87,24.05998422]
[1739991645370,42.70963308,169.92,169.86,24.05998422]
[1739991646178,4.54,169.94,169.89,24.05998422]
[1739991646376,4.54,169.94,169.85,5.8874]
[1739991646377,24.05998422,169.93,169.87,24.05998422]
[1739991646877,24.05998422,169.93,169.86,24.05998422]
[1739991647181,42.70963308,169.9,169.84,24.05998422]
[1739991647494,24.05998422,169.85,169.77,117.51998422]
[1739991647657,4.54,169.85,169.77,99.3502]
[1739991648166,4.54,169.85,169.77,114.076]
[1739991648779,4.54,169.85,169.83,24.05998422]
[1739991648977,20.0,169.86,169.81,24.05998422]
[1739991649180,20.0,169.86,169.8,24.05998422]
[1739991649361,44.05998422,169.86,169.79,24.05998422]
[1739991649561,24.05998422,169.85,169.79,24.05998422]
[1739991649780,44.05998422,169.86,169.8,24.05998422]
[1739991651075,44.05998422,169.86,169.75,29.95098422]
[1739991651076,24.05998422,169.81,169.75,29.95098422]
[1739991651284,24.05998422,169.81,169.75,5.891]
[1739991651486,24.05998422,169.8,169.75,5.891]
[1739991652279,24.05998422,169.8,169.73,29.95138422]
[1739991652477,24.05998422,169.8,169.74,24.05998422]
[1739991653072,24.05998422,169.8,169.75,5.891]
[1739991653565,24.05998422,169.81,169.75,5.891]
[1739991654588,42.70963308,169.82,169.75,29.95098422]
[1739991655686,24.05998422,169.81,169.75,24.05998422]
[1739991656380,24.05998422,169.81,169.75,5.8909]
[1739991656586,20.0,169.8,169.76,24.05998422]
[1739991656788,20.0,169.8,169.75,5.8909]
[1739991656789,20.0,169.81,169.77,24.05998422]
[1739991657286,20.0,169.8,169.77,24.05998422]
[1739991658294,20.0,169.8,169.74,24.05998422]
[1739991658480,20.0,169.8,169.7,14.7312]
[1739991658481,44.05998422,169.8,169.73,24.05998422]
[1739991658986,44.05998422,169.8,169.73,29.95138422]
[1739991659184,20.0,169.8,169.74,24.05998422]
[1739991659382,20.0,169.8,169.78,24.05998422]
[1739991659583,4.54,169.84,169.79,24.05998422]
[1739991659789,30.4231,169.94,169.82,24.05998422]
[1739991659790,4.54,169.86,169.82,24.05998422]
[1739991659979,20.0,169.85,169.82,24.05998422]
[1739991660180,20.0,169.84,169.81,24.05998422]
[1739991661093,4.54,169.86,169.82,24.05998422]
[1739991661277,4.54,169.86,169.84,24.05998422]
[1739991661593,4.54,169.89,169.84,24.05998422]
[1739991662281,24.53564886,169.9,169.84,29.94778422]
[1739991662490,4.603,169.92,169.86,24.05998422]
[1739991662703,24.05998422,169.9,169.83,24.05998422]
[1739991663004,24.05998422,169.9,169.78,24.05998422]
[1739991663005,24.05998422,169.84,169.78,24.05998422]
[1739991663189,24.05998422,169.84,169.77,0.03]
[1739991663190,24.05998422,169.81,169.77,0.03]
[1739991663366,20.0,169.81,169.77,0.03]
[1739991664090,24.05998422,169.78,169.77,0.03]
[1739991664398,48.59953308,169.78,169.77,0.03]
[1739991664792,1.0,169.76,169.65,24.05998422]
[1739991664979,24.05998422,169.72,169.65,24.05998422]
[1739991665183,42.70963308,169.74,169.68,24.05998422]
[1739991665388,28.59998422,169.75,169.68,24.05998422]
[1739991665704,28.59998422,169.75,169.67,24.05998422]
[1739991665705,24.05998422,169.74,169.67,24.05998422]
[1739991665870,24.05998422,169.74,169.68,24.05998422]
[1739991666076,20.0,169.72,169.69,24.05998422]
[1739991666302,10.4299,169.78,169.71,29.95218422]
[1739991666505,4.54,169.78,169.76,24.05998422]
[1739991666803,29.94878422,169.82,169.71,5.8922]
[1739991666804,4.54,169.82,169.77,24.05998422]
[1739991667026,4.54,169.82,169.79,24.05998422]
[1739991667202,9.07860123,169.91,169.81,24.05998422]
[1739991667203,4.54,169.86,169.81,24.05998422]
[1739991667598,20.0,169.85,169.81,24.05998422]
[1739991667976,4.54,169.86,169.81,24.05998422]
[1739991668390,20.0,169.85,169.81,24.05998422]
[1739991668592,4.54,169.86,169.83,24.05998422]
[1739991668819,4.54,169.86,169.82,24.05998422]
[1739991669003,4.54,169.86,169.81,24.05998422]
[1739991669324,28.59998422,169.86,169.8,24.05998422]
[1739991669526,28.59998422,169.86,169.79,29.94948422]
[1739991669826,4.54,169.86,169.81,24.05998422]
[1739991669998,4.54,169.86,169.82,24.05998422]
[1739991670327,24.12298422,169.92,169.85,24.05998422]
[1739991670625,24.12298422,169.92,169.88,24.05998422]
[1739991670626,0.063,169.92,169.88,24.05998422]
[1739991671198,0.063,169.92,169.87,24.05998422]
[1739991671419,0.063,169.92,169.89,24.05998422]
[1739991672511,0.063,169.92,169.91,24.05998422]
[1739991673701,0.063,169.92,169.89,24.05998422]
[1739991674117,0.063,169.92,169.9,24.05998422]
[1739991674820,0.063,169.92,169.9,29.94578422]
[1739991675697,0.063,169.92,169.91,24.05998422]
[1739991677016,0.063,169.92,169.91,54.00536844]
[1739991677518,4.54,170.03,169.92,1.0]
[1739991677718,0.063,170.04,169.99,24.05998422]
[1739991678019,24.05998422,170.02,169.92,24.05998422]
[1739991678209,42.70963308,170.0,169.93,24.05998422]
[1739991678406,20.0,170.01,169.95,24.05998422]
[1739991678593,0.063,170.04,170.0,24.05998422]
[1739991680231,0.063,170.04,170.0,29.94218422]
[1739991680617,0.063,170.04,170.02,24.05998422]
[1739991681594,0.063,170.04,170.01,24.05998422]
[1739991682043,0.063,170.04,169.98,5.883]
[1739991682212,0.063,170.04,170.0,24.05998422]
[1739991682413,0.063,170.04,170.01,24.05998422]
[1739991682712,0.063,170.04,170.0,24.05998422]
[1739991683026,0.063,170.04,170.01,24.05998422]
[1739991683422,0.063,170.04,169.94,4.91732664]
[1739991683423,24.12298422,170.04,169.98,24.05998422]
[1739991683618,42.70963308,170.02,169.95,29.94398422]
[1739991683823,24.05998422,170.0,169.93,24.05998422]
[1739991684034,42.70963308,169.98,169.91,29.97528422]
[1739991684330,24.05998422,169.96,169.91,0.03]
[1739991684517,18.64964886,169.96,169.91,0.03]
[1739991684728,24.05998422,169.99,169.92,24.05998422]
[1739991684918,4.56,170.0,169.94,24.05998422]
[1739991685113,4.56,170.0,169.91,5.9154]
[1739991685114,42.70963308,169.96,169.91,0.03]
[1739991685940,42.70963308,169.94,169.91,0.03]
[1739991686236,24.05998422,169.92,169.91,0.03]
[1739991686438,42.70963308,169.92,169.91,0.03]
[1739991687138,24.05998422,169.92,169.91,0.03]
[1739991687521,48.59473308,169.92,169.91,0.03]
[1739991688248,42.70963308,169.92,169.91,0.03]
[1739991688620,48.59473308,169.92,169.91,0.03]
[1739991689849,72.6547173,169.92,169.91,0.03]
[1739991690744,20.0,169.88,169.79,24.05998422]
[1739991690952,24.05998422,169.85,169.78,29.97988422]
[1739991691126,24.05998422,169.84,169.78,29.97988422]
[1739991692058,24.05998422,169.85,169.78,29.97988422]
[1739991693041,18.64964886,169.84,169.78,24.08998422]
[1739991693251,24.53684886,169.86,169.78,0.03]
[1739991693252,44.05998422,169.83,169.78,0.03]
[1739991693434,20.0,169.83,169.78,29.97988422]
[1739991693750,20.0,169.83,169.79,24.05998422]
[1739991694451,20.0,169.83,169.79,29.94948422]
[1739991694653,4.56,169.87,169.82,24.05998422]
[1739991694832,20.0,169.85,169.81,24.05998422]
[1739991695037,20.0,169.84,169.79,24.05998422]
[1739991695351,18.64964886,169.83,169.78,0.03]
[1739991695718,42.70963308,169.83,169.78,0.03]
[1739991696151,48.59783308,169.83,169.78,0.03]
[1739991696536,42.70963308,169.83,169.78,0.03]
[1739991696841,18.64964886,169.83,169.78,24.08998422]
[1739991697022,44.05998422,169.84,169.79,24.05998422]
[1739991697023,20.0,169.84,169.79,24.05998422]
[1739991697348,20.0,169.84,169.78,0.03]
[1739991697349,4.56,169.87,169.81,24.05998422]
[1739991697651,24.05998422,169.91,169.85,24.05998422]
[1739991697844,29.94468422,169.93,169.86,24.05998422]
[1739991698149,34.52548422,169.91,169.85,24.05998422]
[1739991699049,28.63998422,169.91,169.85,24.05998422]
[1739991699246,4.58,169.91,169.87,24.05998422]
[1739991699453,24.58,169.91,169.87,24.05998422]
[1739991699938,24.58,169.91,169.85,24.05998422]
[1739991700136,4.58,169.91,169.85,24.05998422]
[1739991700330,24.58,169.91,169.85,29.94748422]
[1739991700537,24.58,169.91,169.88,24.05998422]
[1739991700938,24.58,169.91,169.86,24.05998422]
[1739991701134,48.63998422,169.91,169.85,24.05998422]
[1739991701351,4.58,169.91,169.86,24.05998422]
[1739991701652,23.22964886,169.94,169.88,24.05998422]
[1739991702046,18.64964886,169.94,169.88,29.94618422]
[1739991702252,23.22964886,169.94,169.89,24.05998422]
[1739991702432,2.91083568,169.98,169.91,24.05998422]
[1739991702433,24.05998422,169.98,169.91,24.05998422]
[1739991702764,4.58,169.97,169.93,24.05998422]
[1739991703053,4.58,169.97,169.94,24.05998422]
[1739991703761,4.58,169.97,169.95,24.05998422]
[1739991704261,24.05998422,170.02,169.95,29.94388422]
[1739991704564,4.58,170.01,169.97,24.05998422]
[1739991704935,24.05998422,170.03,169.97,24.05998422]
[1739991704936,20.0,170.0,169.97,24.05998422]
[1739991705348,4.58,170.02,169.98,24.05998422]
[1739991706066,4.58,170.02,169.97,24.05998422]
[1739991706438,4.58,170.02,169.96,24.05998422]
[1739991706439,18.64964886,170.01,169.96,24.05998422]
[1739991706863,4.58,170.02,169.97,24.05998422]
[1739991707167,4.643,170.02,169.97,24.05998422]
[1739991707679,4.643,170.02,169.93,20.5966]
[1739991707680,0.063,170.02,170.0,26.96336338]
[1739991709068,0.063,170.02,170.01,26.96336338]